bitfinex-derivatives/quotes_ETHF0:USTF0_20251003
["timestamp","ask_amount","ask_price","bid_price","bid_amount"]
[1759484555490,0.56257488,4477.9,4477.8,0.4017]
[1759484555694,0.02387488,4477.9,4477.8,1.1544]
[1759484556897,0.02179235,4477.9,4477.8,6.1544]
[1759484562002,0.3182,4479.4,4478.2,1.00415]
[1759484562206,0.7414,4479.3,4479.2,1.15427]
[1759484562504,0.7414,4479.9,4479.8,0.2151]
[1759484562701,0.7414,4479.9,4479.5,0.3356]
[1759484563100,0.74353795,4479.9,4479.5,0.33840577]
[1759484566304,0.74353795,4479.9,4479.6,0.3356]
[1759484567105,0.74353795,4479.9,4479.8,0.7527]
[1759484567810,0.74353795,4479.9,4479.8,1.15422]
[1759484570211,0.74353795,4479.9,4479.8,0.7527]
[1759484571913,0.74353795,4479.9,4479.8,1.15422]
[1759484574512,0.54083795,4479.9,4479.8,1.15422]
[1759484574712,0.00213795,4479.9,4479.8,1.15422]
[1759484580510,0.54083795,4479.9,4479.8,1.15422]
[1759484580711,0.54083795,4479.9,4479.8,1.37922]
[1759484581314,0.74353795,4479.9,4479.8,1.37922]
[1759484581927,0.74353795,4479.9,4479.8,1.15422]
[1759484582115,0.74353795,4479.9,4479.8,0.84162]
[1759484582314,0.42533795,4479.9,4479.6,0.40153]
[1759484582519,0.3345,4479.8,4479.6,0.225]
[1759484582722,0.77,4479.7,4479.6,0.443]
[1759484583921,0.77,4479.7,4479.6,0.84454]
[1759484584124,0.77,4479.7,4479.6,1.15404]
[1759484584428,0.77,4479.7,4479.6,0.443]
[1759484584924,0.77,4479.7,4479.6,0.218]
[1759484585127,0.77,4479.7,4479.5,0.00280577]
[1759484604631,5.77,4479.7,4479.5,0.00280577]
[1759484611543,5.77,4479.7,4478.4,0.3092]
[1759484611835,0.8847,4478.5,4478.4,0.5236]
[1759484612243,0.8847,4478.5,4478.1,0.329]
[1759484612543,0.7592,4477.9,4477.8,0.763]
[1759484612740,0.7592,4477.9,4477.8,0.76495547]
[1759484614444,0.3296,4477.9,4477.8,1.16665547]
[1759484614644,0.7592,4478.4,4478.3,0.763]
[1759484615043,0.7592,4478.4,4477.9,0.329]
[1759484615546,0.7592,4478.4,4478.3,0.2144]
[1759484616747,0.7592,4478.4,4478.1,0.329]
[1759484619449,0.7592,4478.4,4478.3,0.5434]
[1759484619749,0.7592,4478.4,4478.3,0.2144]
[1759484621145,0.7592,4478.4,4478.0,0.329]
[1759484621846,0.7592,4478.4,4477.8,0.33095547]
[1759484627256,0.1255,4478.0,4477.9,0.2144]
[1759484627453,0.3472,4478.0,4477.9,0.2144]
[1759484627652,0.5551,4478.0,4477.9,0.5434]
[1759484627855,0.8847,4478.0,4477.9,0.5434]
[1759484630450,0.8847,4478.0,4477.9,0.763]
[1759484633555,0.7592,4478.0,4477.9,0.763]
[1759484635049,0.5513,4478.1,4478.0,0.5486]
[1759484635252,0.7592,4478.1,4478.0,0.763]
[1759484637765,0.5513,4478.1,4478.0,0.763]
[1759484638066,0.1255,4478.5,4478.1,0.329]
[1759484638270,0.5513,4478.4,4478.3,0.763]
[1759484638767,0.7592,4478.4,4478.3,0.763]
[1759484641969,0.7592,4478.4,4478.3,0.2144]
[1759484642277,0.7592,4478.4,4478.0,0.3223]
[1759484642972,0.7592,4478.4,4477.8,0.00195547]
[1759484643367,0.7592,4478.4,4477.8,0.32425547]
[1759484646374,0.7592,4478.4,4478.3,0.205]
[1759484647274,0.7592,4478.4,4478.0,0.3223]
[1759484648169,0.1299,4478.0,4477.8,0.00195547]
[1759484648476,0.8844,4478.0,4477.9,0.5273]
[1759484648669,0.8844,4478.0,4477.9,0.7318]
[1759484657274,0.2215,4478.0,4477.9,0.4095]
[1759484657573,0.537,4478.0,4477.9,0.7318]
[1759484659884,0.7545,4478.0,4477.9,0.7318]
[1759484661582,0.537,4478.4,4478.3,0.4095]
[1759484661775,0.537,4478.4,4478.3,0.7318]
[1759484661983,0.7545,4478.4,4478.3,0.7318]
[1759484667290,0.1255,4479.0,4478.3,0.7318]
[1759484667587,0.3171,4478.9,4478.4,0.3336]
[1759484667783,0.7381,4478.9,4478.8,0.5431]
[1759484669085,0.7381,4478.9,4478.8,0.7502]
[1759484697305,0.3256,4479.3,4478.8,0.4166]
[1759484697506,0.5414,4479.3,4479.2,0.7637]
[1759484697706,0.754,4479.3,4479.2,0.7637]
[1759484703807,0.754,4479.3,4478.9,0.3034]
[1759484704110,0.8662,4479.0,4478.5,0.3034]
[1759484704410,0.5275,4478.5,4478.4,1.13114]
[1759484706009,0.8662,4478.5,4478.4,1.13114]
[1759484709411,0.8662,4478.5,4478.4,0.2066]
[1759484709611,0.8662,4478.5,4478.4,0.60824]
[1759484710416,0.8662,4478.5,4478.4,0.91164]
[1759484710613,0.8662,4478.5,4478.4,1.13114]
[1759484712521,0.2114,4478.7,4478.6,0.7295]
[1759484712811,0.1255,4479.5,4478.9,0.3034]
[1759484713012,0.8662,4479.0,4478.9,0.7295]
[1759484713514,0.8662,4479.0,4478.9,0.4261]
[1759484713916,0.8662,4479.0,4478.9,0.7295]
[1759484713917,0.7385,4479.0,4478.9,0.7295]
[1759484714116,0.7385,4479.0,4478.9,1.1311]
[1759484714418,0.7385,4479.0,4478.9,0.7295]
[1759484715020,0.8662,4479.0,4478.9,0.7295]
[1759484716121,0.7385,4479.0,4478.9,0.7295]
[1759484716823,0.8662,4479.0,4478.9,0.7295]
[1759484722921,0.8662,4479.0,4478.9,0.4261]
[1759484723522,0.8662,4479.0,4478.9,0.2066]
[1759484725321,0.8662,4479.0,4478.9,0.51]
[1759484725822,0.8662,4479.0,4478.9,0.2066]
[1759484727921,0.8662,4479.0,4478.7,0.3324]
[1759484728222,0.5472,4478.3,4478.2,1.15146]
[1759484728620,1.60825105,4479.2,4478.3,0.3324]
[1759484728923,0.7612,4479.1,4479.0,0.5403]
[1759484730324,1.60825105,4479.4,4479.0,0.8762]
[1759484730524,1.82085105,4479.5,4479.4,0.4174]
[1759484730724,1.82085105,4479.5,4479.4,0.7498]
[1759484731025,2.15545105,4479.5,4479.4,0.7498]
[1759484734527,0.5472,4479.5,4479.4,0.7498]
[1759484734733,0.7612,4479.5,4479.4,0.7498]
[1759484736128,0.3346,4479.5,4479.4,1.15135]
[1759484736330,0.5344,4479.7,4479.6,0.7343]
[1759484736725,0.53653795,4479.9,4479.8,0.81732]
[1759484736920,0.53653795,4479.9,4479.8,1.13582]
[1759484739222,0.00213795,4479.9,4479.8,1.13582]
[1759484740230,0.1212,4481.0,4480.9,0.5241]
[1759484740231,0.8633,4481.0,4480.9,0.5241]
[1759484740429,0.8633,4481.0,4480.9,0.7343]
[1759484741135,0.86488374,4481.0,4480.9,0.7343]
[1759484745437,0.86488374,4481.0,4480.9,0.2056]
[1759484745828,0.53598374,4481.0,4480.9,0.7343]
[1759484748032,0.74368374,4481.0,4480.9,0.7343]
[1759484748936,0.00158374,4481.0,4480.9,0.7343]
[1759484749328,0.53598374,4481.0,4480.9,0.7343]
[1759484749734,0.00158374,4481.0,4480.9,1.13572]
[1759484750335,0.53598374,4481.0,4480.9,1.13572]
[1759484750536,0.87668374,4481.0,4480.9,1.13572]
[1759484751039,0.74368374,4481.0,4480.9,1.13572]
[1759484753233,0.87668374,4481.0,4480.9,1.13572]
[1759484759849,0.87668374,4481.0,4480.9,0.7343]
[1759484761948,0.87668374,4481.0,4480.9,0.4158]
[1759484763851,0.87668374,4481.0,4480.9,0.7388]
[1759484764849,0.87668374,4481.0,4480.9,0.2056]
[1759484766759,0.87668374,4481.0,4480.5,0.40145]
[1759484767060,0.87668374,4481.0,4480.0,0.1264]
[1759484767260,0.87668374,4481.0,4479.7,0.79784033]
[1759484767261,0.87668374,4481.0,4480.1,0.323]
[1759484768658,0.54798374,4481.0,4480.1,0.72449]
[1759484768860,0.5212,4480.2,4480.1,0.7666]
[1759484769461,0.7309,4480.2,4480.1,0.7666]
[1759484770768,0.7309,4480.2,4480.1,1.16809]
[1759484771065,0.5212,4480.2,4480.1,1.16809]
[1759484771366,0.3182,4480.2,4480.1,1.16809]
[1759484776663,0.203,4480.5,4480.4,0.84506]
[1759484776868,0.203,4480.5,4480.4,1.16806]
[1759484777369,0.5212,4480.5,4480.4,1.16806]
[1759484779768,0.33758374,4481.0,4480.9,0.40142]
[1759484779970,0.41428374,4481.0,4480.9,1.16802]
[1759484780362,0.31978374,4481.0,4480.9,1.16802]
[1759484780562,0.00158374,4481.0,4480.9,1.16802]
[1759484785880,0.00158374,4481.0,4480.9,1.39302]
[1759484793281,0.3335,4482.4,4481.9,0.323]
[1759484793483,0.7529,4482.4,4482.3,0.2091]
[1759484793988,0.7529,4482.4,4482.0,0.323]
[1759484794172,0.3335,4482.3,4482.1,0.4013]
[1759484794376,0.548,4482.2,4482.1,0.7531]
[1759484794880,0.00233269,4482.4,4482.2,0.323]
[1759484794881,0.3335,4482.3,4482.2,0.323]
[1759484795081,0.548,4482.3,4482.2,1.15439]
[1759484795577,0.33583269,4482.4,4482.3,0.5321]
[1759484795880,0.55033269,4482.4,4482.3,0.7531]
[1759484798286,0.33583269,4482.4,4482.3,0.7531]
[1759484798689,0.00233269,4482.4,4482.3,0.7531]
[1759484799281,0.33583269,4482.4,4482.3,0.7531]
[1759484799781,0.55033269,4482.4,4482.3,0.7531]
[1759484800486,0.33583269,4482.4,4482.3,0.7531]
[1759484802083,0.00233269,4482.4,4482.3,0.7531]
[1759484805293,0.00233269,4482.4,4482.3,5.7531]
[1759484807295,0.022,4482.9,4482.8,0.83135]
[1759484807497,0.022,4482.9,4482.8,1.37835]
[1759484808196,0.0242421,4482.9,4482.8,1.37835]
[1759484808999,0.3577421,4482.9,4482.8,1.37835]
[1759484809200,0.5722421,4482.9,4482.8,1.37835]
[1759484811585,0.5722421,4482.9,4482.8,1.15435]
[1759484811790,0.5722421,4482.9,4482.8,1.37835]
[1759484811985,0.7771421,4482.9,4482.8,0.7531]
[1759484812194,0.7771421,4482.9,4482.8,1.37835]
[1759484812394,0.5722421,4482.9,4482.8,1.37835]
[1759484812594,0.7771421,4482.9,4482.8,1.37835]
[1759484813998,0.7771421,4482.9,4482.8,0.9771]
[1759484815396,0.7771421,4482.9,4482.8,0.4301]
[1759484815596,0.7771421,4482.9,4482.3,0.40129]
[1759484815597,0.7771421,4482.9,4482.6,0.224]
[1759484815797,0.7771421,4482.9,4482.8,0.2091]
[1759484816099,0.7771421,4482.9,4482.8,0.7531]
[1759484816700,0.7771421,4482.9,4482.5,0.323]
[1759484817096,0.1225,4482.5,4482.4,0.2091]
[1759484817401,0.5419,4482.5,4482.4,0.7531]
[1759484817601,0.8754,4482.5,4482.4,0.7531]
[1759484817996,0.8754,4482.5,4482.4,0.4301]
[1759484818598,0.8754,4482.5,4482.4,0.7531]
[1759484818900,0.8754,4482.5,4482.4,0.2091]
[1759484819907,0.8754,4482.5,4482.0,0.95110088]
[1759484820095,0.4194,4482.2,4482.1,0.7531]
[1759484820300,0.7529,4482.2,4482.1,1.15441]
[1759484820500,0.7529,4482.2,4482.1,0.7531]
[1759484821001,0.7529,4482.2,4482.0,0.00279088]
[1759484824500,0.208,4480.7,4480.6,0.79784033]
[1759484824703,0.7341,4480.4,4480.3,0.5308]
[1759484825104,0.7341,4480.4,4480.0,0.3113]
[1759484825509,0.7341,4480.4,4480.0,0.00215848]
[1759484825805,0.7341,4480.4,4480.1,0.3113]
[1759484827802,0.7341,4480.4,4480.3,0.7426]
[1759484828000,0.1255,4481.0,4480.3,0.7426]
[1759484828201,0.5261,4480.9,4480.8,0.7426]
[1759484828402,0.7341,4481.4,4481.3,0.4313]
[1759484828608,0.7341,4481.4,4481.3,0.7426]
[1759484830912,0.7341,4481.4,4481.3,0.4313]
[1759484831204,0.7341,4480.7,4480.6,0.5308]
[1759484831406,0.1255,4480.5,4480.4,0.2195]
[1759484831611,0.5506,4480.5,4480.4,0.2195]
[1759484831816,0.5506,4480.5,4480.0,0.71494848]
[1759484832110,0.5261,4480.1,4480.0,0.74475848]
[1759484832904,0.7341,4480.1,4480.0,0.74475848]
[1759484833411,0.7341,4480.1,4480.0,0.43345848]
[1759484833910,0.7341,4480.1,4480.0,0.74475848]
[1759484835009,0.2171,4480.5,4480.4,0.7426]
[1759484835308,0.5261,4480.5,4480.4,0.7426]
[1759484836105,0.2171,4480.6,4480.5,0.40145]
[1759484836311,0.5261,4480.6,4480.5,0.83275]
[1759484836507,0.7341,4480.6,4480.5,0.83275]
[1759484836819,0.7341,4480.6,4480.5,1.14405]
[1759484839610,0.7341,4480.6,4480.5,0.7426]
[1759484839809,0.7341,4480.6,4480.5,1.14405]
[1759484843216,0.5261,4480.6,4480.5,1.14405]
[1759484844221,0.7341,4480.6,4480.5,1.14405]
[1759484845127,0.5261,4480.6,4480.5,1.14405]
[1759484846222,0.5292,4480.9,4480.8,1.16322]
[1759484849915,0.7437,4481.4,4481.3,0.5404]
[1759484850120,0.7437,4481.4,4481.3,0.7618]
[1759484852227,0.7437,4481.4,4481.0,0.3185]
[1759484853224,0.7437,4481.4,4481.0,0.71991]
[1759484853425,0.3301,4481.3,4481.1,0.3185]
[1759484853627,0.7435,4481.2,4481.1,0.5328]
[1759484857227,0.7435,4481.2,4481.1,0.2143]
[1759484857633,0.7435,4481.2,4481.1,0.741]
[1759484858230,0.7435,4481.2,4481.1,0.5267]
[1759484858536,0.7435,4481.2,4480.6,0.3185]
[1759484858935,0.7435,4481.2,4480.6,0.71994]
[1759484859136,0.2105,4480.7,4480.6,0.82394]
[1759484859336,0.5406,4480.7,4480.6,1.14244]
[1759484859735,0.7435,4480.7,4480.6,1.14244]
[1759484860437,0.7435,4480.7,4480.6,0.4225]
[1759484861533,0.7435,4480.7,4480.6,0.741]
[1759484861833,0.7435,4480.7,4480.6,0.4225]
[1759484862237,0.7435,4480.7,4480.6,0.2143]
[1759484862543,0.7435,4480.7,4480.6,0.5328]
[1759484865042,0.7435,4480.7,4480.6,0.741]
[1759484865346,0.7435,4480.7,4480.6,0.4225]
[1759484866047,0.7435,4480.7,4480.6,0.2143]
[1759484866239,0.4134,4480.2,4480.1,0.5328]
[1759484866437,0.7435,4480.2,4480.1,0.741]
[1759484866736,0.5406,4480.2,4480.1,0.741]
[1759484870038,0.5406,4480.2,4480.1,1.14249]
[1759484870342,0.3301,4480.2,4480.1,1.14249]
[1759484871540,0.3301,4480.2,4480.1,0.741]
[1759484871744,0.3301,4480.2,4480.1,1.14249]
[1759484872043,0.5406,4480.2,4480.1,1.14249]
[1759484874546,0.5406,4480.2,4480.1,1.94033033]
[1759484878644,0.2105,4480.5,4480.4,0.5328]
[1759484878948,0.8647,4481.0,4480.9,0.5328]
[1759484879251,0.8647,4481.0,4480.9,0.2143]
[1759484882053,0.3298,4480.9,4480.4,0.5285]
[1759484882251,0.8767,4480.5,4480.4,0.2217]
[1759484882443,0.8767,4480.5,4480.4,0.5262]
[1759484883754,0.8767,4480.5,4480.4,0.2217]
[1759484884149,0.8767,4480.5,4480.3,0.224]
[1759484884346,0.7506,4480.4,4480.3,0.5262]
[1759484885055,0.7506,4480.4,4480.0,0.00215848]
[1759484885056,0.4208,4480.1,4480.0,0.00215848]
[1759484885258,0.7506,4480.1,4480.0,0.00215848]
[1759484885651,0.7506,4480.1,4480.0,0.22385848]
[1759484885856,0.7506,4480.1,4480.0,1.14845848]
[1759484887357,0.7506,4480.1,4480.0,0.74695848]
[1759484887555,0.7506,4480.1,4480.0,0.44245848]
[1759484887758,0.7506,4480.1,4480.0,0.00215848]
[1759484888147,0.7506,4480.1,4480.0,0.40365848]
[1759484888852,0.7506,4480.1,4480.0,0.00215848]
[1759484889656,0.7506,4479.2,4479.1,0.92778]
[1759484890755,0.7506,4479.2,4479.1,1.14841785]
[1759484890756,0.75298784,4479.2,4479.1,1.14841785]
[1759484892451,0.75298784,4479.2,4479.1,0.62531785]
[1759484892657,0.75298784,4479.2,4479.1,0.00203785]
[1759484894352,0.75298784,4479.2,4479.1,0.40361785]
[1759484894552,0.75298784,4479.2,4479.1,0.00203785]
[1759484897363,0.75298784,4479.2,4479.1,0.62531785]
[1759484897762,0.75298784,4479.2,4479.1,1.14841785]
[1759484897963,0.00238784,4479.2,4479.1,1.14841785]
[1759484898559,0.33218784,4479.2,4479.1,1.14841785]
[1759484898861,0.54158784,4479.2,4479.1,1.14841785]
[1759484899763,0.33218784,4479.2,4479.1,1.14841785]
[1759484900064,0.00238784,4479.2,4479.1,1.14841785]
[1759484901065,0.54158784,4479.2,4479.1,1.14841785]
[1759484904566,0.75298784,4479.2,4479.1,1.14841785]
[1759484905869,0.54158784,4479.2,4479.1,1.14841785]
[1759484906677,0.54158784,4479.2,4479.1,1.37241785]
[1759484907579,0.74898784,4479.2,4479.1,1.14841785]
[1759484907783,0.74898784,4479.2,4479.1,1.15381785]
[1759484908081,0.74898784,4479.2,4479.1,0.84931785]
[1759484909288,0.74898784,4479.2,4479.1,1.17811785]
[1759484911086,0.74898784,4479.2,4479.1,1.38021785]
[1759484913795,0.74898784,4479.2,4479.1,1.15621785]
[1759484913995,0.74898784,4479.2,4479.1,1.38021785]
[1759484914597,0.00238784,4479.2,4479.1,1.38021785]
[1759484915097,0.00238784,4479.2,4479.1,2.17805818]
[1759484915891,0.30648784,4479.2,4479.1,2.17805818]
[1759484916696,0.53018784,4479.2,4479.1,2.17805818]
[1759484918597,0.53018784,4479.2,4479.1,1.38021785]
[1759484918997,0.1261,4480.5,4479.1,1.38021785]
[1759484919299,0.8705,4480.0,4479.6,1.11620325]
[1759484919599,0.749,4479.8,4479.7,0.4284]
[1759484919801,0.749,4479.8,4479.7,0.2044]
[1759484920295,0.75098579,4479.8,4479.6,0.224]
[1759484920502,0.2212,4479.3,4479.2,0.224]
[1759484920696,0.4449,4479.3,4479.2,0.224]
[1759484920895,0.749,4479.3,4479.2,0.4284]
[1759484921896,0.749,4479.3,4479.1,0.8014411]
[1759484922099,0.749,4479.2,4479.1,0.8014411]
[1759484922300,0.749,4479.2,4479.1,1.0058411]
[1759484922500,0.749,4479.2,4479.1,0.00203785]
[1759484925500,5.749,4479.2,4478.3,0.79940325]
[1759484925699,0.1215,4479.5,4477.8,1.40549325]
[1759484925700,0.4449,4477.9,4477.8,1.40549325]
[1759484925900,0.749,4477.9,4477.8,1.94539325]
[1759484926099,0.5278,4477.9,4477.8,1.14599]
[1759484926405,0.1215,4478.5,4478.1,0.40167]
[1759484926606,0.2237,4478.2,4478.1,0.83104134]
[1759484926905,0.3041,4478.9,4478.1,0.40353134]
[1759484927097,0.3041,4478.9,4478.2,0.3168]
[1759484927296,0.2237,4478.3,4478.2,0.7443]
[1759484927502,0.5278,4478.3,4478.2,0.7443]
[1759484927805,0.749,4478.3,4478.2,0.7443]
[1759484928008,0.749,4478.3,4478.1,0.00187134]
[1759484928505,0.749,4478.3,4478.2,0.7443]
[1759484928805,0.749,4478.3,4478.2,0.4275]
[1759484929702,0.749,4478.3,4478.1,0.00187134]
[1759484929904,0.3041,4478.2,4478.1,0.40354134]
[1759484930106,0.749,4478.2,4478.1,0.20627134]
[1759484931010,0.749,4478.2,4478.1,0.60794134]
[1759484931603,0.3041,4478.2,4478.1,1.14784134]
[1759484931816,0.5278,4478.2,4478.1,1.14784134]
[1759484932106,0.749,4478.2,4478.1,1.14784134]
[1759484933215,0.749,4478.2,4478.1,0.00187134]
[1759484935513,0.3041,4477.7,4477.1,0.3168]
[1759484935710,0.749,4477.2,4477.1,1.14606]
[1759484936008,0.1215,4478.0,4476.7,1.19702811]
[1759484936009,0.2212,4477.7,4477.6,0.7443]
[1759484936209,0.4449,4477.7,4477.6,1.14601]
[1759484936512,0.30308717,4479.0,4477.6,1.75071508]
[1759484936714,0.5278,4478.0,4477.9,0.7443]
[1759484937010,0.3452,4478.5,4478.4,0.40164]
[1759484937213,0.8705,4478.5,4478.4,1.14594]
[1759484937516,0.8705,4478.5,4478.4,0.60604]
[1759484938911,0.749,4478.5,4478.4,1.14594]
[1759484939216,0.5664,4479.0,4478.9,0.606]
[1759484939607,0.8705,4479.0,4478.9,0.606]
[1759484941313,0.749,4479.0,4478.9,1.1459]
[1759484941911,0.3127,4478.9,4478.8,0.4016]
[1759484942214,0.7358,4478.9,4478.8,0.4016]
[1759484944611,0.7358,4478.9,4478.8,0.6235]
[1759484945614,0.7358,4478.9,4478.8,1.1417]
[1759484947222,0.3127,4479.7,4479.6,1.14164]
[1759484947515,0.00198579,4479.8,4479.7,0.7401]
[1759484947710,0.52988579,4479.8,4479.7,0.7401]
[1759484948313,0.00198579,4479.8,4479.7,1.04400098]
[1759484948620,0.52988579,4479.8,4479.7,1.04400098]
[1759484948823,0.73778579,4479.8,4479.7,0.30390098]
[1759484949417,0.73778579,4479.8,4479.7,0.52580098]
[1759484949814,0.73778579,4479.8,4479.7,0.30390098]
[1759484950215,0.73778579,4479.8,4479.7,0.52580098]
[1759484951816,0.73778579,4479.8,4479.7,0.30390098]
[1759484952819,0.73778579,4479.8,4479.7,0.52580098]
[1759484954420,0.73778579,4479.8,4479.7,0.92733098]
[1759484954616,0.73778579,4479.8,4479.7,0.52580098]
[1759484954818,0.73778579,4479.8,4479.7,0.2219]
[1759484955820,0.73778579,4479.8,3806.5,0.56355914]
[1759484955821,0.73778579,4479.8,4479.2,0.225]
[1759484956023,0.7358,4479.4,4479.3,0.52555067]
[1759484956428,0.7358,4479.4,4479.3,0.30365067]
[1759484957427,0.7358,4479.4,4478.8,0.71251]
[1759484957725,0.8568,4479.0,4478.9,0.5255541]
[1759484959025,0.8568,4479.0,4478.9,0.8364541]
[1759484960923,0.8568,4479.0,4478.9,1.0437541]
[1759484961532,0.8568,4479.0,4478.9,1.4453541]
[1759484961832,0.7358,4479.0,4478.9,1.4453541]
[1759484962224,0.8568,4479.0,4478.9,1.4453541]
[1759484963828,0.8568,4479.0,4478.9,1.0437541]
[1759484965131,0.8568,4479.0,4478.9,1.4453541]
[1759484965928,0.8568,4479.0,4478.9,0.5255541]
[1759484966133,0.8568,4479.0,4478.9,0.3036541]
[1759484966830,0.8568,4479.0,4478.9,1.0585541]
[1759484967131,0.8568,4479.0,4478.9,0.5217541]
[1759484967734,0.8568,4479.0,4478.9,0.3036541]
[1759484975230,0.8568,4479.0,4478.0,0.5253]
[1759484975231,0.7615,4478.1,4478.0,0.5253]
[1759484975532,0.7615,4478.1,4478.0,1.0483966]
[1759484977338,0.7615,4478.1,4478.0,0.5148966]
[1759484978130,0.7615,4478.1,4478.0,0.8294966]
[1759484978432,0.7615,4478.1,4478.0,0.5253]
[1759484979028,0.7615,4478.1,4478.0,0.7442]
[1759484981938,0.7615,4478.1,4478.0,0.4296]
[1759484983538,0.7615,4478.1,4478.0,1.14588]
[1759484984033,0.5441,4478.1,4478.0,1.14588]
[1759484984336,0.5441,4478.1,4478.0,1.27018]
[1759484985429,0.123,4478.5,4478.3,0.40165]
[1759484985634,0.5482,4479.0,4478.9,0.2107]
[1759484986032,0.5482,4479.0,4478.9,0.5253]
[1759484986233,0.8825,4479.0,4478.9,0.7442]
[1759484986440,0.7615,4479.0,4478.9,0.7442]
[1759484986632,0.00198579,4479.8,4478.9,0.7442]
[1759484986835,0.7615,4479.4,4479.3,0.2107]
[1759484987030,0.7615,4479.4,4479.3,0.7442]
[1759484987335,0.2098,4479.7,4479.6,0.2107]
[1759484987535,0.5441,4479.7,4479.6,0.7442]
[1759484989733,0.7615,4479.7,4479.6,0.7442]
[1759484992239,0.6671,4479.5,4479.4,0.2107]
[1759484992431,0.8845,4479.5,4479.4,0.2107]
[1759484993538,0.8845,4479.5,4479.4,0.5253]
[1759484993845,0.8845,4479.5,4479.4,0.7442]
[1759484995541,0.7615,4479.5,4479.4,0.7442]
[1759484995738,0.5441,4479.5,4479.4,0.7442]
[1759484996843,0.5441,4479.5,4479.4,1.14575]
[1759484999148,0.3343,4479.5,4479.4,1.14575]
[1759484999743,0.21178579,4479.8,4479.7,0.83113]
[1759484999943,0.54608579,4479.8,4479.7,1.14573]
[1759485001043,0.76348579,4479.8,4479.7,1.14573]
[1759485006445,0.00198579,4479.8,4479.7,1.14573]
[1759485006954,0.32798579,4479.8,4479.7,1.14573]
[1759485007846,0.75198579,4479.8,4479.7,1.14573]
[1759485009650,0.00198579,4479.8,4479.7,1.14573]
[1759485023756,0.32798579,4479.8,4479.7,1.14573]
[1759485023964,0.00198579,4479.8,4479.7,1.14573]
[1759485025076,0.32798579,4479.8,4479.7,1.14573]
[1759485025475,0.53108579,4479.8,4479.7,1.14573]
[1759485026477,0.75198579,4479.8,4479.7,1.14573]
[1759485027767,0.75198579,4479.8,4479.5,0.40154]
[1759485028172,0.75198579,4479.8,4479.6,0.40153]
[1759485029578,0.75198579,4479.8,4479.4,0.73174]
[1759485029784,0.8655,4479.5,4479.4,0.95274]
[1759485030578,0.8655,4479.5,4479.4,0.5512]
[1759485031083,0.53118579,4479.8,4479.7,0.7673]
[1759485031978,0.74438579,4479.8,4479.7,0.7673]
[1759485034084,0.8866,4479.5,4479.4,0.222]
[1759485034285,0.8866,4479.5,4479.2,0.70947]
[1759485034286,0.57,4479.5,4479.2,0.70947]
[1759485034478,0.7604,4479.3,4479.2,0.93147]
[1759485034781,0.7604,4479.3,4479.2,0.62357]
[1759485034987,0.7604,4479.3,4479.2,1.13567]
[1759485036381,0.5368,4479.3,4479.2,1.13567]
[1759485038086,0.7604,4479.3,4479.2,0.7341]
[1759485038284,0.7604,4479.3,4479.2,1.13567]
[1759485038986,0.7604,4479.3,4479.2,0.62357]
[1759485039186,0.3166,4479.2,4478.8,0.70951]
[1759485039381,0.7604,4478.9,4478.8,1.13571]
[1759485039777,0.7604,4478.9,4478.8,0.7341]
[1759485040178,0.7604,4478.9,4478.8,1.13571]
[1759485040389,0.7604,4478.9,4478.8,0.7341]
[1759485040588,0.7604,4478.9,4478.8,0.4262]
[1759485041083,0.3166,4478.8,4478.6,1.20102325]
[1759485041290,0.7604,4478.7,4478.6,1.13572]
[1759485042384,0.7604,4478.7,4478.4,0.40164]
[1759485042588,0.1262,4479.0,4478.3,0.222]
[1759485042589,0.7604,4478.4,4478.3,0.222]
[1759485042979,0.7604,4478.4,4478.3,0.5299]
[1759485043885,0.4438,4478.4,4478.0,0.40167]
[1759485044089,0.3166,4478.3,4478.2,0.222]
[1759485044289,0.7604,4478.3,4478.2,0.7341]
[1759485046589,0.7604,4478.3,4478.2,1.13576]
[1759485046987,0.7604,4478.3,4478.2,0.7341]
[1759485047187,0.7604,4478.3,4477.6,0.00212508]
[1759485047188,0.7604,4478.3,4477.9,0.3079]
[1759485047388,0.8866,4478.0,4477.9,1.13579]
[1759485047593,0.7604,4478.0,4477.9,1.13579]
[1759485048688,0.8866,4478.0,4477.9,0.82789]
[1759485049094,0.7604,4478.0,4477.9,1.13579]
[1759485050096,0.8866,4478.0,4477.9,0.4262]
[1759485051194,0.8866,4478.0,4477.9,0.82789]
[1759485051395,0.8866,4478.0,4477.9,0.222]
[1759485052096,0.8866,4478.0,4477.9,0.93159]
[1759485052992,0.8866,4478.0,4477.9,0.5299]
[1759485053197,0.7604,4477.7,4477.6,0.00212508]
[1759485054995,0.7604,4477.7,4477.6,0.93373508]
[1759485055995,0.7604,4477.7,4477.6,0.62583508]
[1759485057203,0.7604,4477.7,4477.6,0.22412508]
[1759485057900,0.7604,4477.7,4477.6,0.62583508]
[1759485058103,0.7604,4477.7,4477.6,1.13793508]
[1759485061796,0.7604,4477.7,4477.6,0.00212508]
[1759485063101,0.7604,4477.7,4477.6,0.40383508]
[1759485063400,0.7604,4477.7,4477.6,1.14843508]
[1759485063605,0.5444,4478.0,4477.9,0.7446]
[1759485063805,0.88,4478.0,4477.9,0.7446]
[1759485064908,0.88,4478.0,4477.6,0.31682508]
[1759485065106,0.88,4478.0,4477.6,0.00212508]
[1759485074411,0.88,4478.0,4477.7,0.3147]
[1759485074910,0.88,4478.0,4477.6,0.00212508]
[1759485077118,0.7551,4478.0,4477.9,0.7446]
[1759485077418,0.88,4478.0,4477.9,0.7446]
[1759485077916,0.88,4478.0,4477.6,0.31682508]
[1759485079519,0.88,4478.0,4477.6,0.00212508]
[1759485081914,0.88,4478.0,4477.6,0.31682508]